[Event "DFMMLV 2024"]
[Site "Braunfels"]
[Date "2024.05.31"]
[Round "3.37"]
[White "Reich, Elisabeth"]
[Black "Guder, Sibylle"]
[Result "1/2-1/2"]
[ECO "B50"]
[WhiteElo "1797"]
[BlackElo "1933"]
[Annotator "NA RC"]
[PlyCount "62"]
[EventDate "2024.05.30"]
[EventType "team-tourn"]
[EventCountry "GER"]
[SourceTitle "playchess.com"]
[Source "ChessBase"]
[SourceQuality "1"]
[TimeControl "40/5400+30:1800+30"]

1. e4 {[%emt 0:00:03]} c5 {[%emt 0:00:05]} 2. Nf3 {[%emt 0:00:04]} d6 {[%emt 0:00:04]} 3. c3 {[%emt 0:00:05]} Nf6 {[%emt 0:00:07]} 4. Bb5+ {[%emt 0:00:05]} Bd7 {[%emt 0:00:52]} 5. Bxd7+ {[%emt 0:00:02]} Nbxd7 {[%emt 0:01:25]} 6. d3 {[%emt 0:00:10]} g6 {[%emt 0:00:08]} 7. O-O {[%emt 0:00:05]} Bg7 {[%emt 0:00:03]} 8. Nbd2 {[%emt 0:00:25]} O-O {[%emt 0:00:14]} 9. Re1 {[%emt 0:00:11]} b5 {[%emt 0:07:35]} 10. d4 {[%emt 0:00:51]} Qc7 {[%emt 0:09:49]} 11. Nf1 {[%emt 0:04:17]} cxd4 {[%emt 0:07:38]} 12. cxd4 {[%emt 0:00:29]} Rac8 {[%emt 0:01:11]} 13. Bg5 {[%emt 0:03:32]} Qc2 {[%emt 0:02:55]} 14. Qxc2 {[%emt 0:01:15]} Rxc2 {[%emt 0:00:06]} 15. Rab1 {[%emt 0:00:09]} h6 {[%emt 0:04:39]} 16. Ne3 {[%emt 0:00:41]} Rc7 {[%emt 0:00:38]} 17. Bxf6 {[%emt 0:00:28]} Nxf6 {[%emt 0:12:05]} 18. e5 {[%emt 0:03:13]} dxe5 {[%emt 0:00:33]} 19. dxe5 {[%emt 0:00:25]} Nh7 {[%emt 0:00:30]} 20. Nd5 {[%emt 0:02:03]} Rb7 {[%emt 0:02:59]} 21. e6 {[%emt 0:02:44]} fxe6 {[%emt 0:08:41]} 22. Rxe6 {[%emt 0:00:21]} Kf7 {[%emt 0:03:11]} 23. Rbe1 {[%emt 0:02:31]} Bf6 {[%emt 0:00:56]} 24. R6e2 {[%emt 0:01:52]} Rd8 {[%emt 0:03:36]} 25. Ne5+ {[%emt 0:02:41]} Bxe5 {[%emt 0:03:14]} 26. Rxe5 {[%emt 0:00:39]} Rdd7 {[%emt 0:00:32]} 27. h3 {[%emt 0:04:29]} Nf6 {[%emt 0:03:15]} 28. Nc3 {[%emt 0:00:52]} Rd2 {[%emt 0:04:45]} 29. Rxb5 {[%emt 0:04:07]} Rxb5 {[%emt 0:00:36]} 30. Nxb5 {[%emt 0:00:02]} Rxb2 {[%emt 0:00:47]} 31. Nxa7 {[%emt 0:00:12]} Rxa2 {[%emt 0:00:26]} 1/2-1/2

[Event "DFMMLV 2024"]
[Site "Braunfels"]
[Date "2024.05.31"]
[Round "3.38"]
[White "Mazurtsova, Margarita"]
[Black "Spiel, Marianne"]
[Result "1-0"]
[ECO "D45"]
[WhiteElo "1779"]
[BlackElo "1890"]
[Annotator "NA RC"]
[PlyCount "101"]
[EventDate "2024.05.30"]
[EventType "team-tourn"]
[EventCountry "GER"]
[SourceTitle "playchess.com"]
[Source "ChessBase"]
[SourceQuality "1"]
[TimeControl "40/5400+30:1800+30"]

1. c4 {[%emt 0:00:26]} Nf6 {[%emt 0:00:22]} 2. Nc3 {[%emt 0:00:31]} e6 {[%emt 0:00:18]} 3. Nf3 {[%emt 0:00:16]} d5 {[%emt 0:00:25]} 4. e3 {[%emt 0:00:24]} c6 {[%emt 0:03:05]} 5. d4 {[%emt 0:01:35]} Bd6 {[%emt 0:00:42]} 6. Be2 {[%emt 0:00:11]} Nbd7 {[%emt 0:00:56]} 7. O-O {[%emt 0:01:35]} O-O {[%emt 0:00:32]} 8. b3 {[%emt 0:02:57]} Re8 {[%emt 0:01:44]} 9. Bb2 {[%emt 0:01:01]} e5 {[%emt 0:05:12]} 10. cxd5 {[%emt 0:02:26]} cxd5 {[%emt 0:00:34]} 11. dxe5 {[%emt 0:00:18]} Nxe5 {[%emt 0:00:19]} 12. Nxd5 {[%emt 0:17:25]} Bg4 {[%emt 0:10:29]} 13. Nxf6+ {[%emt 0:04:48]} Qxf6 {[%emt 0:02:16]} 14. Nxe5 {[%emt 0:01:39]} Bxe2 {[%emt 0:00:33]} 15. Qxe2 {[%emt 0:00:14]} Bxe5 {[%emt 0:00:28]} 16. Bxe5 {[%emt 0:00:19]} Qxe5 {[%emt 0:00:47]} 17. Rac1 {[%emt 0:00:48]} f5 {[%emt 0:03:04]} 18. Qc4+ {[%emt 0:01:33]} Kf8 {[%emt 0:01:58]} 19. Qb4+ {[%emt 0:00:49]} Qe7 {[%emt 0:01:32]} 20. Qf4 {[%emt 0:00:11]} Qe5 {[%emt 0:02:12]} 21. Qb4+ {[%emt 0:01:23]} Qe7 {[%emt 0:00:34]} 22. Qb5 {[%emt 0:01:27]} g6 {[%emt 0:01:44]} 23. Rfd1 {[%emt 0:01:04]} a6 {[%emt 0:01:24]} 24. Qb6 {[%emt 0:01:26]} Rac8 {[%emt 0:04:11]} 25. h3 {[%emt 0:02:01]} Kf7 {[%emt 0:06:31]} 26. Qa5 {[%emt 0:03:10]} Red8 {[%emt 0:02:43]} 27. Rxd8 {[%emt 0:04:52]} Rxc1+ {[%emt 0:00:35]} 28. Kh2 {[%emt 0:00:09]} Qc7+ {[%emt 0:00:32]} 29. Qxc7+ {[%emt 0:00:14]} Rxc7 {[%emt 0:00:01]} 30. Kg3 {[%emt 0:00:17]} Ke7 {[%emt 0:01:11]} 31. Rd2 {[%emt 0:00:39]} h6 {[%emt 0:02:49]} 32. Kf3 {[%emt 0:02:29]} Ke6 {[%emt 0:01:45]} 33. g4 {[%emt 0:02:18]} fxg4+ {[%emt 0:02:38]} 34. hxg4 {[%emt 0:00:30]} Rc5 {[%emt 0:06:44]} 35. Kg3 {[%emt 0:01:51]} h5 {[%emt 0:04:13]} 36. gxh5 {[%emt 0:01:09]} Rxh5 {[%emt 0:00:24]} 37. Rd4 {[%emt 0:01:51]} b5 {[%emt 0:06:42]} 38. b4 {[%emt 0:01:43]} Rf5 {[%emt 0:02:20]} 39. Rd8 {[%emt 0:01:19]} Ke7 {[%emt 0:06:43]} 40. Rb8 {[%emt 0:01:09]} Rf6 {[%emt 0:01:58]} 41. Rb7+ {[%emt 0:30:15]} Kf8 {[%emt 0:30:39]} 42. e4 {[%emt 0:00:36]} Rc6 {[%emt 0:01:22]} 43. f3 {[%emt 0:01:02]} Rd6 {[%emt 0:02:26]} 44. Rc7 {[%emt 0:01:48]} Re6 {[%emt 0:06:06]} 45. Kg4 {[%emt 0:01:09]} Kg8 {[%emt 0:03:47]} 46. Kf4 {[%emt 0:03:02]} Kf8 {[%emt 0:00:57]} 47. e5 {[%emt 0:00:30]} Ke8 {[%emt 0:00:00]} 48. Ke4 {[%emt 0:00:00]} Kf8 {[%emt 0:00:00]} 49. f4 {[%emt 0:00:00]} Ke8 {[%emt 0:00:00]} 50. Kd5 {[%emt 0:00:00]} Rb6 {[%emt 0:00:00]} 51. Rc6 {[%emt 0:00:00]} 1-0

[Event "DFMMLV 2024"]
[Site "Braunfels"]
[Date "2024.05.31"]
[Round "3.39"]
[White "Neumeier, Valentina"]
[Black "Bazzazi, Elnaz"]
[Result "1/2-1/2"]
[ECO "B25"]
[WhiteElo "1802"]
[BlackElo "1840"]
[Annotator "NA RC"]
[PlyCount "61"]
[EventDate "2024.05.30"]
[EventType "team-tourn"]
[EventCountry "GER"]
[SourceTitle "playchess.com"]
[Source "ChessBase"]
[SourceQuality "1"]
[TimeControl "40/5400+30:1800+30"]

1. e4 {[%emt 0:00:04]} c5 {[%emt 0:00:10]} 2. Nc3 {[%emt 0:00:06]} Nc6 {[%emt 0:00:07]} 3. g3 {[%emt 0:00:05]} g6 {[%emt 1:31:43]} 4. Bg2 {[%emt 0:00:04]} Bg7 {[%emt 0:00:00]} 5. d3 {[%emt 0:00:07]} d6 {[%emt 0:00:00]} 6. Nge2 {[%emt 0:00:10]} Nh6 {[%emt 0:00:00]} 7. h3 {[%emt 0:00:18]} O-O {[%emt 0:00:00]} 8. Be3 {[%emt 0:02:36]} f5 {[%emt 0:00:00]} 9. Qd2 {[%emt 0:01:18]} Nf7 {[%emt 0:00:00]} 10. h4 {[%emt 0:00:48]} h5 {[%emt 0:00:00]} 11. Nf4 {[%emt 0:12:50]} Kh7 {[%emt 0:00:00]} 12. exf5 {[%emt 0:13:10]} Bxf5 {[%emt 0:00:00]} 13. O-O {[%emt 0:04:49]} Rb8 {[%emt 0:00:00]} 14. Rab1 {[%emt 0:12:12]} Nd4 {[%emt 0:00:00]} 15. Ne4 {[%emt 0:03:51]} b5 {[%emt 0:00:00]} 16. c3 {[%emt 0:02:39]} Ne6 {[%emt 0:06:30]} 17. Nd5 {[%emt 0:05:30]} Ne5 {[%emt 0:00:00]} 18. Bg5 {[%emt 0:07:14]} Rf7 {[%emt 0:00:00]} 19. Qe2 {[%emt 0:05:14]} Nc7 {[%emt 0:00:00]} 20. Ne3 {[%emt 0:02:38]} Bc8 {[%emt 0:00:00]} 21. Bf4 {[%emt 0:01:25]} Nd5 {[%emt 0:00:00]} 22. Bxe5 {[%emt 0:00:30]} dxe5 {[%emt 0:00:00]} 23. Bh3 {[%emt 0:02:13]} Nf6 {[%emt 0:00:00]} 24. Kh2 {[%emt 0:03:12]} Qc7 {[%emt 0:00:00]} 25. b4 {[%emt 0:03:24]} cxb4 {[%emt 0:00:00]} 26. cxb4 {[%emt 0:00:30]} Nxe4 {[%emt 0:00:00]} 27. dxe4 {[%emt 0:00:30]} Bh6 {[%emt 0:00:00]} 28. Qd1 {[%emt 0:03:26]} Bxh3 {[%emt 0:00:00]} 29. Kxh3 {[%emt 0:00:30]} Rbf8 {[%emt 0:00:00]} 30. Qe1 {[%emt 0:00:30]} Qd7+ {[%emt 0:00:00]} 31. Kg2 {[%emt 0:00:30]} 1/2-1/2

[Event "DFMMLV 2024"]
[Site "Braunfels"]
[Date "2024.05.31"]
[Round "3.41"]
[White "Peschel, Julia"]
[Black "Miljkovic, Jovana"]
[Result "1/2-1/2"]
[ECO "B22"]
[WhiteElo "1736"]
[BlackElo "2026"]
[Annotator "RC"]
[PlyCount "177"]
[EventDate "2024.05.30"]
[EventType "team-tourn"]
[EventCountry "GER"]
[SourceTitle "playchess.com"]
[Source "ChessBase"]
[SourceQuality "1"]
[TimeControl "40/5400+30:1800+30"]

1. e4 {[%emt 0:00:01]} c5 {[%emt 0:00:04]} 2. c3 {[%emt 0:00:07]} Nf6 {[%emt 0:00:09]} 3. e5 {[%emt 0:00:10]} Nd5 {[%emt 0:00:14]} 4. d4 {[%emt 0:00:12]} cxd4 {[%emt 0:00:08]} 5. Nf3 {[%emt 0:00:20]} Nc6 {[%emt 0:00:24]} 6. cxd4 {[%emt 0:00:17]} g6 {[%emt 0:00:06]} 7. Bc4 {[%emt 0:00:45]} Nb6 {[%emt 0:00:46]} 8. Bb3 {[%emt 0:00:16]} Bg7 {[%emt 0:00:21]} 9. O-O {[%emt 1:32:52]} O-O {[%emt 0:00:19]} 10. Re1 {[%emt 0:00:00]} Na5 {[%emt 0:02:48]} 11. Bc2 {[%emt 0:00:00]} d6 {[%emt 0:01:21]} 12. Nc3 {[%emt 0:00:00]} Nc6 {[%emt 0:04:19]} 13. Bf4 {[%emt 0:00:00]} dxe5 {[%emt 0:01:56]} 14. dxe5 {[%emt 0:00:00]} Bg4 {[%emt 0:04:02]} 15. h3 {[%emt 0:00:00]} Qxd1 {[%emt 0:07:02]} 16. Bxd1 {[%emt 0:00:00]} Bf5 {[%emt 0:01:25]} 17. Bb3 {[%emt 0:00:00]} Nb4 {[%emt 0:06:36]} 18. Re2 {[%emt 0:00:00]} Nd3 {[%emt 0:05:55]} 19. Bg3 {[%emt 0:00:00]} Nc5 {[%emt 0:01:53]} 20. Bc2 {[%emt 0:00:00]} Bxc2 {[%emt 0:02:25]} 21. Rxc2 {[%emt 0:00:00]} Rfd8 {[%emt 0:01:49]} 22. Nb5 {[%emt 0:00:00]} Nbd7 {[%emt 0:09:44]} 23. Rd1 {[%emt 0:00:00]} Bh6 {[%emt 0:05:37]} 24. Nc7 {[%emt 0:00:00]} Rac8 {[%emt 0:01:04]} 25. Nd5 {[%emt 0:00:00]} Kf8 {[%emt 0:01:14]} 26. Bh4 {[%emt 0:00:00]} f6 {[%emt 0:04:03]} 27. Nxf6 {[%emt 0:00:00]} exf6 {[%emt 0:08:11]} 28. e6 {[%emt 0:00:00]} Nxe6 {[%emt 0:05:51]} 29. Rxc8 {[%emt 0:00:00]} Rxc8 {[%emt 0:00:05]} 30. Rxd7 {[%emt 0:00:00]} Bf4 {[%emt 0:05:48]} 31. Bg3 {[%emt 0:04:53]} Bxg3 {[%emt 0:01:30]} 32. fxg3 {[%emt 0:00:11]} Rc1+ {[%emt 0:01:49]} 33. Kh2 {[%emt 0:00:06]} Rc7 {[%emt 0:00:14]} 34. Rxc7 {[%emt 0:01:51]} Nxc7 {[%emt 0:00:03]} 35. g4 {[%emt 0:00:18]} Ke7 {[%emt 0:00:32]} 36. Kg3 {[%emt 0:00:22]} Kd6 {[%emt 0:00:30]} 37. Kf4 {[%emt 0:00:33]} Kd5 {[%emt 0:00:47]} 38. Ke3 {[%emt 0:00:51]} Ne6 {[%emt 0:01:18]} 39. h4 {[%emt 0:00:54]} h6 {[%emt 0:00:53]} 40. g3 {[%emt 0:04:29]} Nc5 {[%emt 0:02:52]} 41. Nd2 {[%emt 0:01:38]} b5 {[%emt 0:03:48]} 42. b4 {[%emt 0:02:33]} Nd7 {[%emt 0:01:37]} 43. a3 {[%emt 0:03:27]} Ne5 {[%emt 0:06:32]} 44. Kf4 {[%emt 0:03:25]} Kd4 {[%emt 0:01:46]} 45. h5 {[%emt 0:05:27]} Nd3+ {[%emt 0:01:46]} 46. Kf3 {[%emt 0:00:26]} g5 {[%emt 0:01:39]} 47. Nb3+ {[%emt 0:03:20]} Kd5 {[%emt 0:03:33]} 48. Ke3 {[%emt 0:01:54]} Ne5 {[%emt 0:01:01]} 49. Nc5 {[%emt 0:02:34]} Nxg4+ {[%emt 0:02:24]} 50. Kd2 {[%emt 0:02:24]} Ne5 {[%emt 0:00:59]} 51. Kc3 {[%emt 0:00:54]} f5 {[%emt 0:01:47]} 52. Na6 {[%emt 0:01:57]} Kd6 {[%emt 0:02:01]} 53. Nc5 {[%emt 0:00:37]} Ng4 {[%emt 0:01:54]} 54. Nb3 {[%emt 0:01:05]} f4 {[%emt 0:04:25]} 55. gxf4 {[%emt 0:00:10]} gxf4 {[%emt 0:00:01]} 56. Nd4 {[%emt 0:00:34]} a6 {[%emt 0:00:22]} 57. Kd3 {[%emt 0:00:24]} Kd5 {[%emt 0:00:53]} 58. Nb3 {[%emt 0:02:07]} Ne5+ {[%emt 0:00:49]} 59. Ke2 {[%emt 0:01:13]} Nc4 {[%emt 0:02:10]} 60. Nc5 {[%emt 0:00:26]} Nxa3 {[%emt 0:01:26]} 61. Nxa6 {[%emt 0:00:10]} Ke5 {[%emt 0:01:25]} 62. Kf3 {[%emt 0:00:41]} Nc2 {[%emt 0:01:06]} 63. Nc7 {[%emt 0:00:42]} Nd4+ {[%emt 0:00:29]} 64. Kf2 {[%emt 0:01:22]} Ke4 {[%emt 0:00:33]} 65. Ne8 {[%emt 0:00:15]} Kf5 {[%emt 0:00:45]} 66. Kg2 {[%emt 0:04:17]} Kg5 {[%emt 0:02:04]} 67. Ng7 {[%emt 0:00:00]} Kg4 {[%emt 0:00:18]} 68. Kf2 {[%emt 0:00:00]} f3 {[%emt 0:02:25]} 69. Kf1 {[%emt 0:00:00]} Kg3 {[%emt 0:00:51]} 70. Kg1 {[%emt 0:00:00]} Kf4 {[%emt 0:02:53]} 71. Kf2 {[%emt 0:00:00]} Ke4 {[%emt 0:01:02]} 72. Ne8 {[%emt 0:00:00]} Kf4 {[%emt 0:01:00]} 73. Ng7 {[%emt 0:00:00]} Kg5 {[%emt 0:00:36]} 74. Kg3 {[%emt 0:00:10]} Kf6 {[%emt 0:00:58]} 75. Ne8+ {[%emt 0:00:15]} Ke5 {[%emt 0:00:21]} 76. Kf2 {[%emt 0:00:31]} Ke4 {[%emt 0:01:59]} 77. Ng7 {[%emt 0:00:54]} Nc6 {[%emt 0:00:36]} 78. Ne8 {[%emt 0:00:28]} Nxb4 {[%emt 0:00:30]} 79. Nd6+ {[%emt 0:00:05]} Kf4 {[%emt 0:00:11]} 80. Nxb5 {[%emt 0:00:08]} Nd3+ {[%emt 0:00:11]} 81. Kf1 {[%emt 0:01:21]} Ke3 {[%emt 0:00:16]} 82. Nd6 {[%emt 0:00:39]} f2 {[%emt 0:02:46]} 83. Nf5+ {[%emt 0:00:48]} Kf3 {[%emt 0:00:35]} 84. Nxh6 {[%emt 0:00:15]} Ne5 {[%emt 0:00:11]} 85. Nf5 {[%emt 0:00:37]} Ng4 {[%emt 0:00:18]} 86. Nh4+ {[%emt 0:01:09]} Ke3 {[%emt 0:01:11]} 87. Ng2+ {[%emt 0:00:18]} Kf3 {[%emt 0:00:05]} 88. Nh4+ {[%emt 0:00:04]} Ke3 {[%emt 0:00:10]} 89. Ng2+ {[%emt 0:00:04]} 1/2-1/2

[Event "DFMMLV 2024"]
[Site "Braunfels"]
[Date "2024.05.31"]
[Round "3.46"]
[White "Grabowski, Petra"]
[Black "Lerch, Cornelia"]
[Result "1-0"]
[ECO "D38"]
[WhiteElo "1791"]
[BlackElo "1847"]
[Annotator "NA RC"]
[PlyCount "59"]
[EventDate "2024.05.30"]
[EventType "team-tourn"]
[EventCountry "GER"]
[SourceTitle "playchess.com"]
[Source "ChessBase"]
[SourceQuality "1"]
[TimeControl "40/5400+30:1800+30"]

1. d4 {[%emt 0:00:03]} Nf6 {[%emt 0:00:06]} 2. c4 {[%emt 0:00:04]} e6 {[%emt 0:00:06]} 3. Nf3 {[%emt 0:00:05]} d5 {[%emt 0:01:00]} 4. Nc3 {[%emt 0:00:38]} Bb4 {[%emt 0:01:19]} 5. Bg5 {[%emt 0:03:50]} O-O {[%emt 0:01:46]} 6. e3 {[%emt 0:02:56]} h6 {[%emt 0:01:15]} 7. Bh4 {[%emt 0:01:47]} Re8 {[%emt 0:02:04]} 8. Qc2 {[%emt 0:02:25]} c5 {[%emt 0:08:05]} 9. a3 {[%emt 0:07:52]} Bxc3+ {[%emt 0:00:44]} 10. Qxc3 {[%emt 0:02:43]} cxd4 {[%emt 0:00:55]} 11. Qxd4 {[%emt 0:10:04]} Nc6 {[%emt 0:04:37]} 12. Qd2 {[%emt 0:04:23]} Ne4 {[%emt 0:06:45]} 13. Bxd8 {[%emt 0:01:58]} Nxd2 {[%emt 0:03:58]} 14. Nxd2 {[%emt 0:00:03]} Rxd8 {[%emt 0:00:13]} 15. cxd5 {[%emt 0:00:06]} exd5 {[%emt 0:01:23]} 16. Rd1 {[%emt 0:05:50]} Bf5 {[%emt 0:01:41]} 17. Nf3 {[%emt 0:01:03]} Rac8 {[%emt 0:01:43]} 18. Bd3 {[%emt 0:01:52]} Bg4 {[%emt 0:01:25]} 19. Be2 {[%emt 0:08:56]} Na5 {[%emt 0:06:07]} 20. Nd4 {[%emt 0:17:39]} Bxe2 {[%emt 0:00:43]} 21. Kxe2 {[%emt 0:00:02]} Nc4 {[%emt 0:00:33]} 22. Rc1 {[%emt 0:06:30]} a6 {[%emt 0:03:54]} 23. Rc2 {[%emt 0:03:28]} b5 {[%emt 0:01:10]} 24. Rhc1 {[%emt 0:00:25]} Kf8 {[%emt 0:01:28]} 25. b3 {[%emt 0:01:15]} Nb6 {[%emt 0:00:11]} 26. Rc6 {[%emt 0:02:03]} Rxc6 {[%emt 0:01:14]} 27. Rxc6 {[%emt 0:00:01]} Rb8 {[%emt 0:00:35]} 28. Nf5 {[%emt 0:03:21]} h5 {[%emt 0:00:56]} 29. Nd6 {[%emt 0:04:18]} Ke7 {[%emt 0:01:53]} 30. Rxb6 {[%emt 0:00:03]} 1-0

[Event "DFMMLV 2024"]
[Site "Braunfels"]
[Date "2024.05.31"]
[Round "3.50"]
[White "Skibbe, Diana"]
[Black "Noll, Sonja"]
[Result "1-0"]
[ECO "B00"]
[WhiteElo "1942"]
[BlackElo "1837"]
[Annotator "NA RC"]
[PlyCount "49"]
[EventDate "2024.05.30"]
[EventType "team-tourn"]
[EventCountry "GER"]
[SourceTitle "playchess.com"]
[Source "ChessBase"]
[SourceQuality "1"]
[TimeControl "40/5400+30:1800+30"]

1. e4 {[%emt 0:00:01]} b6 {[%emt 0:00:11]} 2. d4 {[%emt 0:00:10]} Bb7 {[%emt 0:00:09]} 3. Bd3 {[%emt 0:00:05]} e6 {[%emt 0:00:15]} 4. Nf3 {[%emt 0:00:26]} c5 {[%emt 0:00:24]} 5. c3 {[%emt 0:00:18]} g6 {[%emt 0:00:53]} 6. O-O {[%emt 0:00:46]} Bg7 {[%emt 0:00:06]} 7. Nbd2 {[%emt 0:01:06]} Nf6 {[%emt 0:01:20]} 8. e5 {[%emt 0:00:12]} Nd5 {[%emt 0:01:35]} 9. Ne4 {[%emt 0:00:48]} Qc7 {[%emt 0:04:19]} 10. Nd6+ {[%emt 0:00:30]} Ke7 {[%emt 0:00:37]} 11. a3 {[%emt 0:04:38]} Kf8 {[%emt 0:04:09]} 12. Be4 {[%emt 0:01:48]} Nc6 {[%emt 0:03:15]} 13. Ng5 {[%emt 0:05:17]} f5 {[%emt 0:01:51]} 14. Bxd5 {[%emt 0:08:40]} exd5 {[%emt 0:00:06]} 15. Bf4 {[%emt 0:00:38]} h6 {[%emt 0:02:23]} 16. Ngf7 {[%emt 0:00:10]} Rh7 {[%emt 0:02:43]} 17. Qd3 {[%emt 0:01:09]} Ne7 {[%emt 0:05:31]} 18. Qh3 {[%emt 0:00:26]} Ng8 {[%emt 0:02:15]} 19. Rac1 {[%emt 0:00:36]} Ke7 {[%emt 0:04:47]} 20. Rfe1 {[%emt 0:00:43]} Rf8 {[%emt 0:00:34]} 21. e6 {[%emt 0:01:01]} dxe6 {[%emt 0:01:53]} 22. Nxf5+ {[%emt 0:01:09]} Kf6 {[%emt 0:01:15]} 23. Bxc7 {[%emt 0:00:09]} gxf5 {[%emt 0:01:29]} 24. Ne5 {[%emt 0:00:07]} Rc8 {[%emt 0:00:43]} 25. Qh4# {[%emt 0:00:09]} 1-0

[Event "DFMMLV 2024"]
[Site "Braunfels"]
[Date "2024.05.31"]
[Round "3.51"]
[White "Ramm, Madlen"]
[Black "Dietrich, Mareike"]
[Result "1-0"]
[ECO "C45"]
[WhiteElo "1830"]
[BlackElo "1855"]
[Annotator "NA RC"]
[PlyCount "59"]
[EventDate "2024.05.30"]
[EventType "team-tourn"]
[EventCountry "GER"]
[SourceTitle "playchess.com"]
[Source "ChessBase"]
[SourceQuality "1"]
[TimeControl "40/5400+30:1800+30"]

1. e4 {[%emt 0:00:02]} e5 {[%emt 0:00:13]} 2. Nf3 {[%emt 0:00:04]} Nc6 {[%emt 0:00:17]} 3. d4 {[%emt 0:00:03]} exd4 {[%emt 0:00:31]} 4. Nxd4 {[%emt 0:00:06]} Ne5 {[%emt 0:00:34]} 5. Be3 {[%emt 0:08:56]} Nf6 {[%emt 0:00:39]} 6. f3 {[%emt 0:01:20]} Bb4+ {[%emt 0:01:03]} 7. c3 {[%emt 1:23:29]} Ba5 {[%emt 0:00:19]} 8. Nd2 {[%emt 0:00:00]} O-O {[%emt 1:30:54]} 9. Nc4 {[%emt 0:00:00]} Nxc4 {[%emt 0:00:00]} 10. Bxc4 {[%emt 0:00:00]} Bb6 {[%emt 0:00:00]} 11. Qb3 {[%emt 0:00:00]} d6 {[%emt 0:00:00]} 12. O-O-O {[%emt 0:00:00]} Qe7 {[%emt 0:00:00]} 13. g4 {[%emt 0:00:00]} Nd7 {[%emt 0:00:00]} 14. h4 {[%emt 0:00:00]} Ne5 {[%emt 0:00:00]} 15. Be2 {[%emt 0:00:00]} Be6 {[%emt 0:00:00]} 16. Qc2 {[%emt 0:00:00]} Rac8 {[%emt 0:00:00]} 17. Kb1 {[%emt 0:00:00]} Bc4 {[%emt 0:00:00]} 18. g5 {[%emt 0:00:00]} Bxe2 {[%emt 0:00:00]} 19. Qxe2 {[%emt 0:00:00]} g6 {[%emt 0:00:00]} 20. h5 {[%emt 0:00:00]} Bxd4 {[%emt 0:00:00]} 21. Rxd4 {[%emt 0:00:00]} f5 {[%emt 0:00:00]} 22. gxf6 {[%emt 0:00:00]} Qxf6 {[%emt 0:00:00]} 23. f4 {[%emt 0:00:00]} Nc6 {[%emt 0:00:00]} 24. Rdd1 {[%emt 0:00:00]} Qe6 {[%emt 0:00:00]} 25. Bc1 {[%emt 0:00:00]} Rce8 {[%emt 0:00:00]} 26. Rde1 {[%emt 0:00:00]} d5 {[%emt 0:00:00]} 27. Qh2 {[%emt 0:00:00]} Kf7 {[%emt 0:00:00]} 28. hxg6+ {[%emt 0:00:00]} Qxg6 {[%emt 0:00:00]} 29. Rhg1 {[%emt 0:00:00]} Qe6 {[%emt 0:00:00]} 30. Qxh7+ {[%emt 0:11:30]} 1-0

[Event "DFMMLV 2024"]
[Site "Braunfels"]
[Date "2024.05.31"]
[Round "3.52"]
[White "Ulrich, Helena Irene"]
[Black "Weinmann, Helene"]
[Result "0-1"]
[ECO "B40"]
[WhiteElo "1819"]
[BlackElo "1655"]
[Annotator "NA RC"]
[PlyCount "126"]
[EventDate "2024.05.30"]
[EventType "team-tourn"]
[EventCountry "GER"]
[SourceTitle "playchess.com"]
[Source "ChessBase"]
[SourceQuality "1"]
[TimeControl "40/5400+30:1800+30"]

1. e4 {[%emt 0:00:03]} c5 {[%emt 0:00:04]} 2. Nc3 {[%emt 0:00:06]} a6 {[%emt 0:00:13]} 3. g3 {[%emt 0:01:43]} b5 {[%emt 0:00:45]} 4. Bg2 {[%emt 0:02:36]} Bb7 {[%emt 0:00:14]} 5. d3 {[%emt 0:03:10]} e6 {[%emt 0:00:14]} 6. Nf3 {[%emt 0:00:56]} d5 {[%emt 0:01:54]} 7. exd5 {[%emt 0:01:02]} exd5 {[%emt 0:00:08]} 8. O-O {[%emt 0:01:51]} Nf6 {[%emt 0:00:36]} 9. Re1+ {[%emt 0:02:54]} Be7 {[%emt 0:00:06]} 10. Bd2 {[%emt 0:01:36]} O-O {[%emt 0:00:23]} 11. a3 {[%emt 0:01:12]} Nc6 {[%emt 0:02:15]} 12. Ne2 {[%emt 0:04:20]} d4 {[%emt 0:05:52]} 13. Nf4 {[%emt 0:07:48]} Qc7 {[%emt 0:03:25]} 14. Ng5 {[%emt 0:06:30]} Nd8 {[%emt 0:08:20]} 15. Bxb7 {[%emt 0:05:13]} Qxb7 {[%emt 0:00:13]} 16. Qf3 {[%emt 0:04:10]} Re8 {[%emt 0:03:22]} 17. Qxb7 {[%emt 0:01:29]} Nxb7 {[%emt 0:00:20]} 18. Ne4 {[%emt 0:07:41]} Nxe4 {[%emt 0:05:29]} 19. Rxe4 {[%emt 0:00:38]} Nd6 {[%emt 0:08:56]} 20. Re2 {[%emt 0:01:07]} Bg5 {[%emt 0:01:43]} 21. Rae1 {[%emt 0:01:43]} Rxe2 {[%emt 0:04:06]} 22. Rxe2 {[%emt 0:00:08]} Re8 {[%emt 0:00:07]} 23. Rxe8+ {[%emt 0:01:29]} Nxe8 {[%emt 0:01:21]} 24. Kg2 {[%emt 0:00:20]} Nc7 {[%emt 0:04:40]} 25. Kf3 {[%emt 0:01:06]} f5 {[%emt 0:02:26]} 26. Ba5 {[%emt 0:04:12]} Na8 {[%emt 0:06:19]} 27. h4 {[%emt 0:08:32]} Be7 {[%emt 0:00:37]} 28. Ne6 {[%emt 0:15:43]} Kf7 {[%emt 0:02:13]} 29. Nf4 {[%emt 0:04:55]} Bd6 {[%emt 0:02:12]} 30. Nd5 {[%emt 0:03:35]} Ke6 {[%emt 0:01:14]} 31. Nf4+ {[%emt 0:00:28]} Ke5 {[%emt 0:04:53]} 32. c3 {[%emt 0:01:16]} Nc7 {[%emt 0:03:48]} 33. Nh5 {[%emt 0:03:04]} Ne8 {[%emt 0:04:49]} 34. Nf4 {[%emt 0:00:21]} g6 {[%emt 0:03:01]} 35. cxd4+ {[%emt 0:00:08]} cxd4 {[%emt 0:00:06]} 36. Bb6 {[%emt 0:00:07]} Nc7 {[%emt 0:01:13]} 37. Nh3 {[%emt 0:01:29]} Ne6 {[%emt 0:01:20]} 38. Nf4 {[%emt 0:00:35]} Nxf4 {[%emt 0:01:36]} 39. gxf4+ {[%emt 0:00:01]} Kd5 {[%emt 0:00:03]} 40. Ba5 {[%emt 0:00:22]} Bc5 {[%emt 0:03:01]} 41. Ke2 {[%emt 0:32:07]} Be7 {[%emt 0:30:31]} 42. h5 {[%emt 0:00:31]} gxh5 {[%emt 0:00:33]} 43. f3 {[%emt 0:00:50]} Bd6 {[%emt 0:07:16]} 44. Bd2 {[%emt 0:00:24]} Kc6 {[%emt 0:00:45]} 45. Kf2 {[%emt 0:02:46]} Kb6 {[%emt 0:00:57]} 46. Kg3 {[%emt 0:00:00]} Be7 {[%emt 0:00:00]} 47. Bb4 {[%emt 0:00:00]} Bd8 {[%emt 0:00:00]} 48. Bd6 {[%emt 0:00:00]} a5 {[%emt 0:00:00]} 49. b4 {[%emt 0:00:00]} axb4 {[%emt 0:00:00]} 50. axb4 {[%emt 0:00:00]} Kc6 {[%emt 0:00:00]} 51. Bc5 {[%emt 0:00:00]} Kd5 {[%emt 0:00:00]} 52. Kh3 {[%emt 0:00:00]} Bc7 {[%emt 0:00:00]} 53. Kh4 {[%emt 0:00:00]} Bxf4 {[%emt 0:00:00]} 54. Kxh5 {[%emt 0:00:00]} Bd2 {[%emt 0:00:00]} 55. Kh4 {[%emt 0:00:00]} Ke5 {[%emt 0:00:00]} 56. Kg3 {[%emt 0:00:00]} h5 {[%emt 0:00:00]} 57. Kg2 {[%emt 0:00:00]} h4 {[%emt 0:00:00]} 58. Be7 {[%emt 0:00:00]} h3+ {[%emt 0:00:00]} 59. Kxh3 {[%emt 0:00:00]} Kf4 {[%emt 0:00:00]} 60. Kg2 {[%emt 0:00:00]} Ke3 {[%emt 0:00:00]} 61. f4 {[%emt 0:00:00]} Kxd3 {[%emt 0:00:00]} 62. Kf3 {[%emt 0:00:00]} Kc4 {[%emt 0:00:00]} 63. Ke2 {[%emt 0:00:00]} Bxb4 {[%emt 0:00:00]} 0-1